BODY,BODY NAME,DATE,TRANSACTION NUMBER, AMOUNT ,SUPPLIER NAME,SUPPLIER ID,EXPENSE AREA,EXPENSE TYPE,EXPENSE CODE
http://statistics.data.gov.uk/id/local-authority/12UE,Huntingdonshire District Council,24/02/2011,77004,"2,376.00",Elephant & Castle Freehouse & Motel,CR401969,Accommodation For Homeless,Bed & Breakfast Payment,818
http://statistics.data.gov.uk/id/local-authority/12UE,Huntingdonshire District Council,03/02/2011,75620,"2,646.00",Elephant & Castle Freehouse & Motel,CR401969,Accommodation For Homeless,Bed & Breakfast Payment,818
http://statistics.data.gov.uk/id/local-authority/12UE,Huntingdonshire District Council,10/02/2011,76006,"2,754.00",Elephant & Castle Freehouse & Motel,CR401969,Accommodation For Homeless,Bed & Breakfast Payment,818
http://statistics.data.gov.uk/id/local-authority/12UE,Huntingdonshire District Council,17/02/2011,76542,"2,970.00",Elephant & Castle Freehouse & Motel,CR401969,Accommodation For Homeless,Bed & Breakfast Payment,818
http://statistics.data.gov.uk/id/local-authority/12UE,Huntingdonshire District Council,10/02/2011,74955,"5,100.00",Cambridge Environmental Research Consultants,CR479994,Air Quality,Software,206
http://statistics.data.gov.uk/id/local-authority/12UE,Huntingdonshire District Council,03/02/2011,75004,"2,450.00",Opus International Consultants,CR479831,Building Control Applications,Consultants Other,711
http://statistics.data.gov.uk/id/local-authority/12UE,Huntingdonshire District Council,10/02/2011,74843,732,G Ferrara Ltd,CR478949,Bus Shelters,Sitework,359
http://statistics.data.gov.uk/id/local-authority/12UE,Huntingdonshire District Council,24/02/2011,75572,780,Beebys Limited,CR415822,Bus Stations,Building Cleaning Internal,440
http://statistics.data.gov.uk/id/local-authority/12UE,Huntingdonshire District Council,24/02/2011,76973,"1,000.00",St Neots Town Centre Initiative,CR403542,Business & Enterprise Support,Consultation And Surveys,770
http://statistics.data.gov.uk/id/local-authority/12UE,Huntingdonshire District Council,24/02/2011,76403,"6,000.00",Nwes Property Services Ltd,CR479264,Business & Enterprise Support,Grants (Paid Out),800
http://statistics.data.gov.uk/id/local-authority/12UE,Huntingdonshire District Council,24/02/2011,76955,901.5,Reestore Ltd,CR479078,Business & Enterprise Support,Instructors/Tutors,720
http://statistics.data.gov.uk/id/local-authority/12UE,Huntingdonshire District Council,24/02/2011,76957,"2,000.00",Mainstream Marketing,CR481153,Business & Enterprise Support,Instructors/Tutors,720
http://statistics.data.gov.uk/id/local-authority/12UE,Huntingdonshire District Council,17/02/2011,74905,656.83,Mystery Shoppers Ltd,CR413512,Call Centre,Benchmarking,707
http://statistics.data.gov.uk/id/local-authority/12UE,Huntingdonshire District Council,10/02/2011,74475,"23,933.27",Cambridgeshire County Council,CR477465,Call Centre,I C T Services,731
http://statistics.data.gov.uk/id/local-authority/12UE,Huntingdonshire District Council,17/02/2011,74912,"1,339.20",Quest Partnership Ltd,CR480204,Call Centre,Training - Other,136
http://statistics.data.gov.uk/id/local-authority/12UE,Huntingdonshire District Council,03/02/2011,74934,"3,708.12",Cale Briparc Ltd,CR401137,Car Park Management,Car Park Machines,522
http://statistics.data.gov.uk/id/local-authority/12UE,Huntingdonshire District Council,03/02/2011,74535,924,British Parking Assoc,CR031588,Car Park Management,Corporate Subscriptions,754
http://statistics.data.gov.uk/id/local-authority/12UE,Huntingdonshire District Council,10/02/2011,75872,587.79,Swalec,CR407130,Car Park Management,Electricity,420
http://statistics.data.gov.uk/id/local-authority/12UE,Huntingdonshire District Council,24/02/2011,75941,"1,306.80",Shopsafe Ltd,CR411150,Car Park Management,Mobile Telephones & Radios,241
http://statistics.data.gov.uk/id/local-authority/12UE,Huntingdonshire District Council,17/02/2011,76590,-542.85,Bemrose Booth,CR407126,Car Park Management,Tickets,227
http://statistics.data.gov.uk/id/local-authority/12UE,Huntingdonshire District Council,17/02/2011,76589,"1,422.93",Bemrose Booth,CR407126,Car Park Management,Tickets,227
http://statistics.data.gov.uk/id/local-authority/12UE,Huntingdonshire District Council,24/02/2011,75843,"36,000.00",Chapman Taylor Llp,CR481129,Car Parks Capital,Consultants Other,711
http://statistics.data.gov.uk/id/local-authority/12UE,Huntingdonshire District Council,24/02/2011,76177,"12,474.00",Idox Information Solutions Ltd,CR481134,Community Projects,Software,206
http://statistics.data.gov.uk/id/local-authority/12UE,Huntingdonshire District Council,24/02/2011,76178,"1,158.00",Idox Information Solutions Ltd,CR481134,Community Projects,Training - Professional,130
http://statistics.data.gov.uk/id/local-authority/12UE,Huntingdonshire District Council,03/02/2011,509409,"2,500.00",St Mary The Virgin Godmanchester Pcc,CR481126,Conservation & Listed Build,Grants (Paid Out),800
http://statistics.data.gov.uk/id/local-authority/12UE,Huntingdonshire District Council,03/02/2011,509408,"4,000.00",REDACTED PERSONAL DATA,CR481125,Conservation & Listed Build,Grants (Paid Out),800
http://statistics.data.gov.uk/id/local-authority/12UE,Huntingdonshire District Council,10/02/2011,75298,632.69,Peterborough Evening Telegraph,CR400234,Corporate Committees,Advertising - Communication,256
http://statistics.data.gov.uk/id/local-authority/12UE,Huntingdonshire District Council,24/02/2011,77063,576.48,Newlyn Plc,CR409114,Council Tax,Bailiffs,703
http://statistics.data.gov.uk/id/local-authority/12UE,Huntingdonshire District Council,03/02/2011,74162,648.21,Newlyn Plc,CR409114,Council Tax,Bailiffs,703
http://statistics.data.gov.uk/id/local-authority/12UE,Huntingdonshire District Council,24/02/2011,77096,631.59,Pcf,CR411949,Council Tax,Software,206
http://statistics.data.gov.uk/id/local-authority/12UE,Huntingdonshire District Council,17/02/2011,510546,200,Post Office  Ltd,CR008902,Countryside Management,Vehicle Licence,609
http://statistics.data.gov.uk/id/local-authority/12UE,Huntingdonshire District Council,03/02/2011,75526,510.03,G4s Cashservices Uk Ltd,CR407133,Customer Service Centres,Cash Collection,702
http://statistics.data.gov.uk/id/local-authority/12UE,Huntingdonshire District Council,10/02/2011,75948,607.51,John Henry & Sons,CR031967,Cycling,Sitework,359
http://statistics.data.gov.uk/id/local-authority/12UE,Huntingdonshire District Council,15/02/2011,510522,"5,000.00",Anglian Regional Co-Operative Society Ltd,CR481145,Dc Application Processing,Legal Fees And Consultancy,729
http://statistics.data.gov.uk/id/local-authority/12UE,Huntingdonshire District Council,03/02/2011,74780,878.58,Oce Uk Limited,CR409013,Document Centre,Equipment Maintenance,511
http://statistics.data.gov.uk/id/local-authority/12UE,Huntingdonshire District Council,17/02/2011,76454,"1,503.58",Ricoh Uk Ltd,CR477632,Document Centre,Equipment Maintenance,511
http://statistics.data.gov.uk/id/local-authority/12UE,Huntingdonshire District Council,10/02/2011,74804,506.4,Antalis Ltd,CR479468,Document Centre,Paper,562
http://statistics.data.gov.uk/id/local-authority/12UE,Huntingdonshire District Council,10/02/2011,75545,714.43,Masons Paper Co Ltd,CR001164,Document Centre,Paper,562
http://statistics.data.gov.uk/id/local-authority/12UE,Huntingdonshire District Council,17/02/2011,75538,662.79,T N T Post Midlands Ltd,CR479965,Document Centre,Postage,231
http://statistics.data.gov.uk/id/local-authority/12UE,Huntingdonshire District Council,10/02/2011,75523,780.51,T N T Post Midlands Ltd,CR479965,Document Centre,Postage,231
http://statistics.data.gov.uk/id/local-authority/12UE,Huntingdonshire District Council,17/02/2011,75521,"1,293.28",Royal Mail,CR027083,Document Centre,Postage,231
http://statistics.data.gov.uk/id/local-authority/12UE,Huntingdonshire District Council,17/02/2011,75524,"1,379.51",Royal Mail,CR027083,Document Centre,Postage,231
http://statistics.data.gov.uk/id/local-authority/12UE,Huntingdonshire District Council,10/02/2011,76115,528.75,Printexpress.Co.Uk,CR478393,Document Centre,Subcontractors,777
http://statistics.data.gov.uk/id/local-authority/12UE,Huntingdonshire District Council,10/02/2011,75540,"1,469.40",West Country Paper,CR400581,Document Centre,Subcontractors,777
http://statistics.data.gov.uk/id/local-authority/12UE,Huntingdonshire District Council,03/02/2011,74932,609.44,Staffline Group,CR416827,Domestic Refuse,Hired Staff,100
http://statistics.data.gov.uk/id/local-authority/12UE,Huntingdonshire District Council,17/02/2011,75598,642.35,Staffline Group,CR416827,Domestic Refuse,Hired Staff,100
http://statistics.data.gov.uk/id/local-authority/12UE,Huntingdonshire District Council,17/02/2011,75596,966.25,Staffline Group,CR416827,Domestic Refuse,Hired Staff,100
http://statistics.data.gov.uk/id/local-authority/12UE,Huntingdonshire District Council,03/02/2011,74930,971.82,Staffline Group,CR416827,Domestic Refuse,Hired Staff,100
http://statistics.data.gov.uk/id/local-authority/12UE,Huntingdonshire District Council,24/02/2011,75857,"1,301.15",Staffline Group,CR416827,Domestic Refuse,Hired Staff,100
http://statistics.data.gov.uk/id/local-authority/12UE,Huntingdonshire District Council,10/02/2011,75169,"1,361.54",Staffline Group,CR416827,Domestic Refuse,Hired Staff,100
http://statistics.data.gov.uk/id/local-authority/12UE,Huntingdonshire District Council,10/02/2011,75165,"2,190.53",Staffline Group,CR416827,Domestic Refuse,Hired Staff,100
http://statistics.data.gov.uk/id/local-authority/12UE,Huntingdonshire District Council,24/02/2011,75977,"2,682.31",Bandvulc Tyres Ltd,CR406810,Domestic Refuse,Tyres,630
http://statistics.data.gov.uk/id/local-authority/12UE,Huntingdonshire District Council,08/02/2011,75996,"-29,493.81",Perrys Of Gobowen,CR481135,Domestic Refuse,Vehicle Accident Damage,623
http://statistics.data.gov.uk/id/local-authority/12UE,Huntingdonshire District Council,08/02/2011,75980,"1,331.60",Perrys Of Gobowen,CR481135,Domestic Refuse,Vehicle Accident Damage,623
http://statistics.data.gov.uk/id/local-authority/12UE,Huntingdonshire District Council,10/02/2011,75998,"5,915.60",Perrys Of Gobowen,CR481135,Domestic Refuse,Vehicle Accident Damage,623
http://statistics.data.gov.uk/id/local-authority/12UE,Huntingdonshire District Council,08/02/2011,75979,"29,493.81",Perrys Of Gobowen,CR481135,Domestic Refuse,Vehicle Accident Damage,623
http://statistics.data.gov.uk/id/local-authority/12UE,Huntingdonshire District Council,24/02/2011,75853,657.6,Burnt Tree Group,CR480897,Domestic Refuse,Vehicle Hire,607
http://statistics.data.gov.uk/id/local-authority/12UE,Huntingdonshire District Council,17/02/2011,510546,"3,250.00",Post Office  Ltd,CR008902,Domestic Refuse,Vehicle Licence,609
http://statistics.data.gov.uk/id/local-authority/12UE,Huntingdonshire District Council,17/02/2011,73818,-515.85,Cummins Uk,CR480395,Domestic Refuse,Vehicle Maintenance,619
http://statistics.data.gov.uk/id/local-authority/12UE,Huntingdonshire District Council,03/02/2011,75656,509.39,Dennis Eagle Ltd,CR000200,Domestic Refuse,Vehicle Maintenance,619
http://statistics.data.gov.uk/id/local-authority/12UE,Huntingdonshire District Council,10/02/2011,75664,769.19,Dennis Eagle Ltd,CR000200,Domestic Refuse,Vehicle Maintenance,619
http://statistics.data.gov.uk/id/local-authority/12UE,Huntingdonshire District Council,17/02/2011,75286,"1,548.51",Terberg Matec Uk Ltd,CR402183,Domestic Refuse,Vehicle Maintenance,619
http://statistics.data.gov.uk/id/local-authority/12UE,Huntingdonshire District Council,17/02/2011,75666,"2,654.08",Dennis Eagle Ltd,CR000200,Domestic Refuse,Vehicle Maintenance,619
http://statistics.data.gov.uk/id/local-authority/12UE,Huntingdonshire District Council,17/02/2011,75673,"5,374.42",Terberg Matec Uk Ltd,CR402183,Domestic Refuse,Vehicle Maintenance,619
http://statistics.data.gov.uk/id/local-authority/12UE,Huntingdonshire District Council,17/02/2011,76479,732.06,Capital Seating,CR480016,Domestic Refuse,Vehicle Parts,625
http://statistics.data.gov.uk/id/local-authority/12UE,Huntingdonshire District Council,03/02/2011,75614,508.32,Ecocleen Services Limited,CR406985,Efh & Depots,Building Cleaning Internal,440
http://statistics.data.gov.uk/id/local-authority/12UE,Huntingdonshire District Council,10/02/2011,75647,"1,381.97",Ecocleen Services Limited,CR406985,Efh & Depots,Building Cleaning Internal,440
http://statistics.data.gov.uk/id/local-authority/12UE,Huntingdonshire District Council,17/02/2011,76667,"5,406.00",Swalec,CR407130,Efh & Depots,Electricity,420
http://statistics.data.gov.uk/id/local-authority/12UE,Huntingdonshire District Council,17/02/2011,76380,880.69,E-On Energy,CR416430,Efh & Depots,Gas,421
http://statistics.data.gov.uk/id/local-authority/12UE,Huntingdonshire District Council,24/02/2011,76949,569.92,Sustainenable,CR481156,Energy Efficiency,Consultants Other,711
http://statistics.data.gov.uk/id/local-authority/12UE,Huntingdonshire District Council,17/02/2011,75260,568.14,Lex Autolease Ltd,CR410751,Env & Comm Services Director,Vehicle Operating Lease,601
http://statistics.data.gov.uk/id/local-authority/12UE,Huntingdonshire District Council,17/02/2011,75259,"7,916.83",Lex Autolease Ltd,CR410751,Env & Comm Services Director,Vehicle Operating Lease,601
http://statistics.data.gov.uk/id/local-authority/12UE,Huntingdonshire District Council,08/02/2011,75989,"-2,992.98",Mr N R J Moore,CR480972,Environmental Improvements,Building Construction,300
http://statistics.data.gov.uk/id/local-authority/12UE,Huntingdonshire District Council,08/02/2011,74833,"2,992.98",Mr N R J Moore,CR480972,Environmental Improvements,Building Construction,300
http://statistics.data.gov.uk/id/local-authority/12UE,Huntingdonshire District Council,17/02/2011,76594,"3,790.69",Mr N R J Moore,CR480972,Environmental Improvements,Building Construction,300
http://statistics.data.gov.uk/id/local-authority/12UE,Huntingdonshire District Council,03/02/2011,75328,"50,168.90",Apollo Property Services Group,CR480335,Environmental Improvements,Building Construction,300
http://statistics.data.gov.uk/id/local-authority/12UE,Huntingdonshire District Council,24/02/2011,76972,"106,000.00",Cambridgeshire County Council,CR416949,Environmental Improvements,Contribution,810
http://statistics.data.gov.uk/id/local-authority/12UE,Huntingdonshire District Council,03/02/2011,74287,"5,936.46",Urbis Lighting Ltd,CR000016,Environmental Improvements,Equipment Purchases,500
http://statistics.data.gov.uk/id/local-authority/12UE,Huntingdonshire District Council,24/02/2011,75651,949.49,Mhb Services,CR417269,Environmental Improvements,Sitework,359
http://statistics.data.gov.uk/id/local-authority/12UE,Huntingdonshire District Council,24/02/2011,76677,"4,606.51",Drivers  Jonas Deloitte,CR400573,Estates Properties Capital,Consultants Other,711
http://statistics.data.gov.uk/id/local-authority/12UE,Huntingdonshire District Council,17/02/2011,76474,"15,950.70",Drivers  Jonas Deloitte,CR400573,Estates Properties Capital,Consultants Other,711
http://statistics.data.gov.uk/id/local-authority/12UE,Huntingdonshire District Council,24/02/2011,76413,"5,082.00",Freeth Cartwright Llp,CR480787,Estates Properties Capital,Legal Fees And Consultancy,729
http://statistics.data.gov.uk/id/local-authority/12UE,Huntingdonshire District Council,03/02/2011,75551,"1,057.50",Advanced Business Solutions,CR032921,Financial Services,Consultants Other,711
http://statistics.data.gov.uk/id/local-authority/12UE,Huntingdonshire District Council,24/02/2011,77096,631.57,Pcf,CR411949,Financial Services,Software,206
http://statistics.data.gov.uk/id/local-authority/12UE,Huntingdonshire District Council,24/02/2011,77096,631.59,Pcf,CR411949,Financial Services Mus,Software,206
http://statistics.data.gov.uk/id/local-authority/12UE,Huntingdonshire District Council,10/02/2011,74817,"1,307.54",J Paterson,CR480409,Financial Services Mus,Training - Other,136
http://statistics.data.gov.uk/id/local-authority/12UE,Huntingdonshire District Council,03/02/2011,74204,985.81,Days Contract Hire,CR417030,Fleet Management,Vehicle Finance Leases,602
http://statistics.data.gov.uk/id/local-authority/12UE,Huntingdonshire District Council,03/02/2011,75543,"7,685.09",Computershare Vouchers Ltd,CR412205,General Creditors,Deductions Paid To Third Party,26
http://statistics.data.gov.uk/id/local-authority/12UE,Huntingdonshire District Council,24/02/2011,75557,558.65,Lansford Access Ltd,CR481088,Grounds Maintenance (Combined),Equipment Purchases,500
http://statistics.data.gov.uk/id/local-authority/12UE,Huntingdonshire District Council,24/02/2011,75885,"1,260.00",Global Tree Solutions,CR400957,Grounds Maintenance (Combined),Tree Maintenance,357
http://statistics.data.gov.uk/id/local-authority/12UE,Huntingdonshire District Council,24/02/2011,76400,"1,032.00",Ians Tyre And Exhaust Centre,CR405836,Grounds Maintenance (Combined),Tyres,630
http://statistics.data.gov.uk/id/local-authority/12UE,Huntingdonshire District Council,17/02/2011,510546,800,Post Office  Ltd,CR008902,Grounds Maintenance (Combined),Vehicle Licence,609
http://statistics.data.gov.uk/id/local-authority/12UE,Huntingdonshire District Council,24/02/2011,75930,686.7,Anglia Towing Equipment,CR401360,Grounds Maintenance (Combined),Vehicle Maintenance,619
http://statistics.data.gov.uk/id/local-authority/12UE,Huntingdonshire District Council,24/02/2011,75693,"2,480.51",Shared Services Architects,CR481087,Head Of Imd,Consultants Other,711
http://statistics.data.gov.uk/id/local-authority/12UE,Huntingdonshire District Council,24/02/2011,75669,639,1st Choice Recruitment,CR406132,Helpdesk,Hired Staff,100
http://statistics.data.gov.uk/id/local-authority/12UE,Huntingdonshire District Council,17/02/2011,75381,688.5,1st Choice Recruitment,CR406132,Helpdesk,Hired Staff,100
http://statistics.data.gov.uk/id/local-authority/12UE,Huntingdonshire District Council,24/02/2011,76173,602.16,Dell Computer Corporation,CR408320,Helpdesk,Other I T Hardware,203
http://statistics.data.gov.uk/id/local-authority/12UE,Huntingdonshire District Council,17/02/2011,76179,"5,708.46",Caci Limited,CR409683,Helpdesk,Software,206
http://statistics.data.gov.uk/id/local-authority/12UE,Huntingdonshire District Council,24/02/2011,75695,"5,937.12",Frontrange Solutions,CR403465,Helpdesk,Software,206
http://statistics.data.gov.uk/id/local-authority/12UE,Huntingdonshire District Council,17/02/2011,75720,"2,772.00",Coral Design Management,CR029621,Hinchingbrooke Country Park,Printing (External),220
http://statistics.data.gov.uk/id/local-authority/12UE,Huntingdonshire District Council,24/02/2011,77013,750,Maple Fleet Services Ltd,CR479686,Hinchingbrooke Country Park,Vehicle Maintenance,619
http://statistics.data.gov.uk/id/local-authority/12UE,Huntingdonshire District Council,17/02/2011,75926,"6,322.14",Arthur Ibbett Ltd,CR000430,Hinchingbrooke Country Park,Vehicle Maintenance,619
http://statistics.data.gov.uk/id/local-authority/12UE,Huntingdonshire District Council,10/02/2011,75563,806.19,Anglian Water,CR000071,Hinchingbrooke Country Park,Water,432
http://statistics.data.gov.uk/id/local-authority/12UE,Huntingdonshire District Council,03/02/2011,75621,696,Alexanders,CR415843,Homelessness Management,Removal/Storage,750
http://statistics.data.gov.uk/id/local-authority/12UE,Huntingdonshire District Council,24/02/2011,511668,934.64,Bibby Factors Leicester Ltd,CR480417,Housing Management Units,Hired Staff,100
http://statistics.data.gov.uk/id/local-authority/12UE,Huntingdonshire District Council,17/02/2011,510525,941.23,Bibby Factors Leicester Ltd,CR480417,Housing Management Units,Hired Staff,100
http://statistics.data.gov.uk/id/local-authority/12UE,Huntingdonshire District Council,10/02/2011,510185,974.14,Bibby Factors Leicester Ltd,CR480417,Housing Management Units,Hired Staff,100
http://statistics.data.gov.uk/id/local-authority/12UE,Huntingdonshire District Council,03/02/2011,75552,"3,492.00",Reed Business Information Ltd,CR401020,Human Resources,Books & Publications,250
http://statistics.data.gov.uk/id/local-authority/12UE,Huntingdonshire District Council,10/02/2011,75008,"5,197.41",Hinchingbrooke Healthcare Nhs,CR003003,Human Resources,Medical Fees,734
http://statistics.data.gov.uk/id/local-authority/12UE,Huntingdonshire District Council,03/02/2011,75547,659.45,Norman & Nicholson,CR415685,Human Resources,Training - Management,132
http://statistics.data.gov.uk/id/local-authority/12UE,Huntingdonshire District Council,10/02/2011,75863,824.16,Crystal Leaning And Development Ltd,CR416713,Human Resources,Training - Management,132
http://statistics.data.gov.uk/id/local-authority/12UE,Huntingdonshire District Council,24/02/2011,75548,"1,080.00",Glasstap,CR479316,Human Resources,Training - Management,132
http://statistics.data.gov.uk/id/local-authority/12UE,Huntingdonshire District Council,10/02/2011,74794,"1,710.00",Plain English Campaign Limited,CR408983,Human Resources,Training - Other,136
http://statistics.data.gov.uk/id/local-authority/12UE,Huntingdonshire District Council,24/02/2011,75546,"1,980.00",Talking Life,CR415705,Human Resources,Training - Other,136
http://statistics.data.gov.uk/id/local-authority/12UE,Huntingdonshire District Council,24/02/2011,75694,"1,422.00",Esri Uk,CR405125,Information Manager,Training - Other,136
http://statistics.data.gov.uk/id/local-authority/12UE,Huntingdonshire District Council,24/02/2011,76182,594,Mitech Systems,CR403948,Internal Services Holding,Equipment Maintenance,511
http://statistics.data.gov.uk/id/local-authority/12UE,Huntingdonshire District Council,10/02/2011,75166,"1,460.35",Staffline Group,CR416827,Kerbside Recycling,Hired Staff,100
http://statistics.data.gov.uk/id/local-authority/12UE,Huntingdonshire District Council,03/02/2011,74928,"1,647.24",Staffline Group,CR416827,Kerbside Recycling,Hired Staff,100
http://statistics.data.gov.uk/id/local-authority/12UE,Huntingdonshire District Council,17/02/2011,75595,"1,943.46",Staffline Group,CR416827,Kerbside Recycling,Hired Staff,100
http://statistics.data.gov.uk/id/local-authority/12UE,Huntingdonshire District Council,24/02/2011,75858,"3,090.90",Staffline Group,CR416827,Kerbside Recycling,Hired Staff,100
http://statistics.data.gov.uk/id/local-authority/12UE,Huntingdonshire District Council,24/02/2011,75977,537.1,Bandvulc Tyres Ltd,CR406810,Kerbside Recycling,Tyres,630
http://statistics.data.gov.uk/id/local-authority/12UE,Huntingdonshire District Council,17/02/2011,75677,"2,448.46",Cummins Uk,CR480395,Kerbside Recycling,Vehicle Maintenance,619
http://statistics.data.gov.uk/id/local-authority/12UE,Huntingdonshire District Council,24/02/2011,76848,"12,289.65",Cambridgeshire County Council,CR006678,Land Charges,Other Office Expenses,295
http://statistics.data.gov.uk/id/local-authority/12UE,Huntingdonshire District Council,11/02/2011,510506,500,Hmcs,CR031005,Legal Services Managment Units,Legal Fees And Consultancy,729
http://statistics.data.gov.uk/id/local-authority/12UE,Huntingdonshire District Council,17/02/2011,76473,"47,073.60",R G Carter Peterborough,CR401511,Leisure Centres Capital,Building Construction,300
http://statistics.data.gov.uk/id/local-authority/12UE,Huntingdonshire District Council,03/02/2011,75574,"2,444.00",Building Services Design - Bsd,CR409263,Leisure Centres Capital,Consultants Other,711
http://statistics.data.gov.uk/id/local-authority/12UE,Huntingdonshire District Council,10/02/2011,76019,762.46,R G Carter Peterborough,CR401511,Leisure Centres Capital,Gen Building Mtce - Planned,304
http://statistics.data.gov.uk/id/local-authority/12UE,Huntingdonshire District Council,10/02/2011,76015,"36,760.20",R G Carter Peterborough,CR401511,Leisure Centres Capital,Gen Building Mtce - Planned,304
http://statistics.data.gov.uk/id/local-authority/12UE,Huntingdonshire District Council,24/02/2011,76642,"1,202.40",Hytrac Lifts Ltd,CR030618,Leisure Centres Capital,Insurance Personal Accident,161
http://statistics.data.gov.uk/id/local-authority/12UE,Huntingdonshire District Council,03/02/2011,74948,881.25,Primesight Advertising Ltd,CR132710,Leisure Centres Overall,Advertising/Promoting Services,255
http://statistics.data.gov.uk/id/local-authority/12UE,Huntingdonshire District Council,17/02/2011,75585,"1,350.00",Primesight Advertising Ltd,CR132710,Leisure Centres Overall,Advertising/Promoting Services,255
http://statistics.data.gov.uk/id/local-authority/12UE,Huntingdonshire District Council,03/02/2011,74950,"1,800.00",Primesight Advertising Ltd,CR132710,Leisure Centres Overall,Advertising/Promoting Services,255
http://statistics.data.gov.uk/id/local-authority/12UE,Huntingdonshire District Council,10/02/2011,76027,857.28,Cfb Limited,CR480886,Leisure Centres Overall,Consultants Other,711
http://statistics.data.gov.uk/id/local-authority/12UE,Huntingdonshire District Council,10/02/2011,75847,945.17,Cfb Limited,CR480886,Leisure Centres Overall,Consultants Other,711
http://statistics.data.gov.uk/id/local-authority/12UE,Huntingdonshire District Council,24/02/2011,509406,528,Grafham Water Centre,CR416894,Leisure Development,Instructors/Tutors,720
http://statistics.data.gov.uk/id/local-authority/12UE,Huntingdonshire District Council,17/02/2011,510546,200,Post Office  Ltd,CR008902,Leisure Development,Vehicle Licence,609
http://statistics.data.gov.uk/id/local-authority/12UE,Huntingdonshire District Council,09/02/2011,75668,869.5,Hire Or Buy Group Ltd,CR000707,Leisure Services Capital,Materials,550
http://statistics.data.gov.uk/id/local-authority/12UE,Huntingdonshire District Council,10/02/2011,75022,600.96,Mogo Uk,CR410378,Licences,Licence Plates,564
http://statistics.data.gov.uk/id/local-authority/12UE,Huntingdonshire District Council,17/02/2011,76428,717,Mo Motors,CR406493,Licences,Vehicle Inspection,618
http://statistics.data.gov.uk/id/local-authority/12UE,Huntingdonshire District Council,17/02/2011,76427,825,Mo Motors,CR406493,Licences,Vehicle Inspection,618
http://statistics.data.gov.uk/id/local-authority/12UE,Huntingdonshire District Council,10/02/2011,75827,"4,297.20",A K & J F Farms,CR030450,Misc Countryside Sites,Sitework,359
http://statistics.data.gov.uk/id/local-authority/12UE,Huntingdonshire District Council,03/02/2011,75016,907.32,Reed Employment Plc,CR416757,Network Services,Hired Staff,100
http://statistics.data.gov.uk/id/local-authority/12UE,Huntingdonshire District Council,17/02/2011,75704,941.17,Reed Employment Plc,CR416757,Network Services,Hired Staff,100
http://statistics.data.gov.uk/id/local-authority/12UE,Huntingdonshire District Council,10/02/2011,75879,"1,191.70",Reed Employment Plc,CR416757,Network Services,Hired Staff,100
http://statistics.data.gov.uk/id/local-authority/12UE,Huntingdonshire District Council,03/02/2011,74554,"1,530.00",Virgin Media Business,CR033120,Network Services,I T Line Rental,248
http://statistics.data.gov.uk/id/local-authority/12UE,Huntingdonshire District Council,03/02/2011,74555,"18,527.18",Virgin Media Business,CR033120,Network Services,I T Line Rental,248
http://statistics.data.gov.uk/id/local-authority/12UE,Huntingdonshire District Council,10/02/2011,75696,"4,437.10",Oracle Corporation Uk Ltd,CR400893,Network Services,Software,206
http://statistics.data.gov.uk/id/local-authority/12UE,Huntingdonshire District Council,03/02/2011,74958,"3,786.25",Virgin Media Business,CR033120,Network Services,Telephone Charges,240
http://statistics.data.gov.uk/id/local-authority/12UE,Huntingdonshire District Council,03/02/2011,75337,501.82,Maskearaid Ind Supplies,CR033423,One Leisure Huntingdon,Cleaning Materials,443
http://statistics.data.gov.uk/id/local-authority/12UE,Huntingdonshire District Council,17/02/2011,76664,"3,174.24",Swalec,CR407130,One Leisure Huntingdon,Electricity,420
http://statistics.data.gov.uk/id/local-authority/12UE,Huntingdonshire District Council,17/02/2011,75951,"5,244.07",Swalec,CR407130,One Leisure Huntingdon,Electricity,420
http://statistics.data.gov.uk/id/local-authority/12UE,Huntingdonshire District Council,17/02/2011,76382,"1,113.67",E-On Energy,CR416430,One Leisure Huntingdon,Gas,421
http://statistics.data.gov.uk/id/local-authority/12UE,Huntingdonshire District Council,17/02/2011,76386,"3,047.58",E-On Energy,CR416430,One Leisure Huntingdon,Gas,421
http://statistics.data.gov.uk/id/local-authority/12UE,Huntingdonshire District Council,17/02/2011,76644,648.56,Konica Minolta Business Solutions East Ltd,CR478866,One Leisure Huntingdon,Other Office Equipment,209
http://statistics.data.gov.uk/id/local-authority/12UE,Huntingdonshire District Council,10/02/2011,75339,743.1,Air Systems A/C & Ref Ltd,CR416171,One Leisure Huntingdon,Plant & Equipment Maintenance,380
http://statistics.data.gov.uk/id/local-authority/12UE,Huntingdonshire District Council,24/02/2011,76600,"1,231.18",Combined Energy Solutions,CR003063,One Leisure Huntingdon,Plant & Equipment Maintenance,380
http://statistics.data.gov.uk/id/local-authority/12UE,Huntingdonshire District Council,17/02/2011,76650,"1,186.13",Ecocleen Services Limited,CR406985,One Leisure Huntingdon,Subcontractors,777
http://statistics.data.gov.uk/id/local-authority/12UE,Huntingdonshire District Council,10/02/2011,75613,-518.53,Booker Cash And Carry,CR027611,One Leisure Huntingdon,Vending Materials,560
http://statistics.data.gov.uk/id/local-authority/12UE,Huntingdonshire District Council,24/02/2011,76532,540.85,Booker Cash And Carry,CR027611,One Leisure Huntingdon,Vending Materials,560
http://statistics.data.gov.uk/id/local-authority/12UE,Huntingdonshire District Council,17/02/2011,76546,929.99,Glaxosmithkline,CR010424,One Leisure Huntingdon,Vending Materials,560
http://statistics.data.gov.uk/id/local-authority/12UE,Huntingdonshire District Council,17/02/2011,76599,"1,951.87",Anglian Water Payment Centre,CR409323,One Leisure Huntingdon,Water,432
http://statistics.data.gov.uk/id/local-authority/12UE,Huntingdonshire District Council,17/02/2011,75952,"2,386.69",Swalec,CR407130,One Leisure Ramsey,Electricity,420
http://statistics.data.gov.uk/id/local-authority/12UE,Huntingdonshire District Council,24/02/2011,77071,512.3,Technogym Uk Ltd,CR033037,One Leisure Ramsey,Equipment Maintenance,511
http://statistics.data.gov.uk/id/local-authority/12UE,Huntingdonshire District Council,17/02/2011,75903,"1,632.00",Menerga Ltd,CR033494,One Leisure Ramsey,Equipment Maintenance,511
http://statistics.data.gov.uk/id/local-authority/12UE,Huntingdonshire District Council,10/02/2011,75906,"3,426.00",Technogym Uk Ltd,CR033037,One Leisure Ramsey,Equipment Maintenance,511
http://statistics.data.gov.uk/id/local-authority/12UE,Huntingdonshire District Council,17/02/2011,76378,"2,142.12",E-On Energy,CR416430,One Leisure Ramsey,Gas,421
http://statistics.data.gov.uk/id/local-authority/12UE,Huntingdonshire District Council,10/02/2011,75901,960.95,Ecocleen Services Limited,CR406985,One Leisure Ramsey,Gen Building Mtce - Planned,304
http://statistics.data.gov.uk/id/local-authority/12UE,Huntingdonshire District Council,24/02/2011,75902,"1,644.00",Ramsey Fencing,CR410870,One Leisure Ramsey,Gen Building Mtce - Planned,304
http://statistics.data.gov.uk/id/local-authority/12UE,Huntingdonshire District Council,17/02/2011,75950,"3,343.80",Swalec,CR407130,One Leisure Sawtry,Electricity,420
http://statistics.data.gov.uk/id/local-authority/12UE,Huntingdonshire District Council,17/02/2011,76383,"2,718.86",E-On Energy,CR416430,One Leisure Sawtry,Gas,421
http://statistics.data.gov.uk/id/local-authority/12UE,Huntingdonshire District Council,24/02/2011,75671,"1,074.00",Kubik Installations,CR404967,One Leisure Sawtry,Gen Building Mtce - Responsive,303
http://statistics.data.gov.uk/id/local-authority/12UE,Huntingdonshire District Council,10/02/2011,75670,"1,581.64",Anglian Water,CR000071,One Leisure Sawtry,Water,432
http://statistics.data.gov.uk/id/local-authority/12UE,Huntingdonshire District Council,10/02/2011,76147,589.51,Heineken Uk Ltd,CR032678,One Leisure St Ives,Bar Provisions,558
http://statistics.data.gov.uk/id/local-authority/12UE,Huntingdonshire District Council,24/02/2011,77133,676.71,Pure Foods Systems Limited,CR416803,One Leisure St Ives,Bar Provisions,558
http://statistics.data.gov.uk/id/local-authority/12UE,Huntingdonshire District Council,10/02/2011,76152,677.48,Heineken Uk Ltd,CR032678,One Leisure St Ives,Bar Provisions,558
http://statistics.data.gov.uk/id/local-authority/12UE,Huntingdonshire District Council,24/02/2011,77138,741.74,Heineken Uk Ltd,CR032678,One Leisure St Ives,Bar Provisions,558
http://statistics.data.gov.uk/id/local-authority/12UE,Huntingdonshire District Council,10/02/2011,76153,797.53,Heineken Uk Ltd,CR032678,One Leisure St Ives,Bar Provisions,558
http://statistics.data.gov.uk/id/local-authority/12UE,Huntingdonshire District Council,24/02/2011,77112,893.8,Booker Cash And Carry,CR027611,One Leisure St Ives,Bar Provisions,558
http://statistics.data.gov.uk/id/local-authority/12UE,Huntingdonshire District Council,24/02/2011,77111,"1,186.49",Booker Cash And Carry,CR027611,One Leisure St Ives,Bar Provisions,558
http://statistics.data.gov.uk/id/local-authority/12UE,Huntingdonshire District Council,24/02/2011,77137,"1,436.36",Heineken Uk Ltd,CR032678,One Leisure St Ives,Bar Provisions,558
http://statistics.data.gov.uk/id/local-authority/12UE,Huntingdonshire District Council,24/02/2011,77109,521.95,Booker Cash And Carry,CR027611,One Leisure St Ives,Confectionery,572
http://statistics.data.gov.uk/id/local-authority/12UE,Huntingdonshire District Council,24/02/2011,77123,729.65,Booker Cash And Carry,CR027611,One Leisure St Ives,Confectionery,572
http://statistics.data.gov.uk/id/local-authority/12UE,Huntingdonshire District Council,17/02/2011,75953,629.37,Swalec,CR407130,One Leisure St Ives,Electricity,420
http://statistics.data.gov.uk/id/local-authority/12UE,Huntingdonshire District Council,17/02/2011,76666,"1,542.66",Swalec,CR407130,One Leisure St Ives,Electricity,420
http://statistics.data.gov.uk/id/local-authority/12UE,Huntingdonshire District Council,17/02/2011,76665,"8,969.59",Swalec,CR407130,One Leisure St Ives,Electricity,420
http://statistics.data.gov.uk/id/local-authority/12UE,Huntingdonshire District Council,03/02/2011,75645,517.2,Sky Business,CR033259,One Leisure St Ives,Entertainments Inc Cable Tv,744
http://statistics.data.gov.uk/id/local-authority/12UE,Huntingdonshire District Council,17/02/2011,76672,"1,590.83",Starlite Roadshow,CR024127,One Leisure St Ives,Entertainments Inc Cable Tv,744
http://statistics.data.gov.uk/id/local-authority/12UE,Huntingdonshire District Council,03/02/2011,75252,584.35,Honeywell Novar Systems,CR406826,One Leisure St Ives,Equipment Maintenance,511
http://statistics.data.gov.uk/id/local-authority/12UE,Huntingdonshire District Council,17/02/2011,76381,970.36,E-On Energy,CR416430,One Leisure St Ives,Gas,421
http://statistics.data.gov.uk/id/local-authority/12UE,Huntingdonshire District Council,17/02/2011,76377,"4,315.02",E-On Energy,CR416430,One Leisure St Ives,Gas,421
http://statistics.data.gov.uk/id/local-authority/12UE,Huntingdonshire District Council,17/02/2011,76022,577.2,Lloyds Tsb Commercial Finance Ltd,CR410928,One Leisure St Ives,Hired Staff,100
http://statistics.data.gov.uk/id/local-authority/12UE,Huntingdonshire District Council,24/02/2011,76180,523.2,All About Ice Ltd,CR481144,One Leisure St Ives,Materials,550
http://statistics.data.gov.uk/id/local-authority/12UE,Huntingdonshire District Council,17/02/2011,75018,908.5,Border Studio,CR402068,One Leisure St Ives,Materials,550
http://statistics.data.gov.uk/id/local-authority/12UE,Huntingdonshire District Council,17/02/2011,75020,"1,320.00",J P S Lighting Ltd,CR019934,One Leisure St Ives,Materials,550
http://statistics.data.gov.uk/id/local-authority/12UE,Huntingdonshire District Council,24/02/2011,76191,"1,192.42",Newitts Sports And Leisure,CR409080,One Leisure St Ives,Sports Equipment,524
http://statistics.data.gov.uk/id/local-authority/12UE,Huntingdonshire District Council,24/02/2011,75714,"1,250.00",Institute Of Groundsmanship,CR413725,One Leisure St Ives,Training - Operational,131
http://statistics.data.gov.uk/id/local-authority/12UE,Huntingdonshire District Council,24/02/2011,76033,594,Biffa Waste Services Ltd,CR000376,One Leisure St Ives,Waste Disposal,763
http://statistics.data.gov.uk/id/local-authority/12UE,Huntingdonshire District Council,03/02/2011,74947,881.25,Primesight Advertising Ltd,CR132710,One Leisure St Neots,Advertising/Promoting Services,255
http://statistics.data.gov.uk/id/local-authority/12UE,Huntingdonshire District Council,17/02/2011,75954,"8,174.25",Swalec,CR407130,One Leisure St Neots,Electricity,420
http://statistics.data.gov.uk/id/local-authority/12UE,Huntingdonshire District Council,03/02/2011,75255,803.17,Phs Group Ltd,CR032018,One Leisure St Neots,Equipment Hire,507
http://statistics.data.gov.uk/id/local-authority/12UE,Huntingdonshire District Council,17/02/2011,76384,524.54,E-On Energy,CR416430,One Leisure St Neots,Gas,421
http://statistics.data.gov.uk/id/local-authority/12UE,Huntingdonshire District Council,17/02/2011,76385,"3,699.03",E-On Energy,CR416430,One Leisure St Neots,Gas,421
http://statistics.data.gov.uk/id/local-authority/12UE,Huntingdonshire District Council,24/02/2011,76051,697.3,Roger Wilson Electronics,CR028041,One Leisure St Neots,Gen Building Mtce - Responsive,303
http://statistics.data.gov.uk/id/local-authority/12UE,Huntingdonshire District Council,10/02/2011,75195,623.38,Zoggs International Ltd,CR004270,One Leisure St Neots,Materials For Resale,570
http://statistics.data.gov.uk/id/local-authority/12UE,Huntingdonshire District Council,24/02/2011,76187,516.78,Empress Printers,CR480750,One Leisure St Neots,Printing (External),220
http://statistics.data.gov.uk/id/local-authority/12UE,Huntingdonshire District Council,24/02/2011,76060,"1,351.41",Snackline Direct Ltd,CR478090,One Leisure St Neots,Vending Materials,560
http://statistics.data.gov.uk/id/local-authority/12UE,Huntingdonshire District Council,17/02/2011,76414,623.32,Anglian Water,CR000071,One Leisure St Neots,Water,432
http://statistics.data.gov.uk/id/local-authority/12UE,Huntingdonshire District Council,24/02/2011,77100,761.91,Anglian Water,CR000071,One Leisure St Neots,Water,432
http://statistics.data.gov.uk/id/local-authority/12UE,Huntingdonshire District Council,24/02/2011,75937,635.23,United Wipes,CR477773,Operations Mgt Units,Materials,550
http://statistics.data.gov.uk/id/local-authority/12UE,Huntingdonshire District Council,24/02/2011,75893,588,Boningale Nurseries,CR416880,Parks & Open Spaces,Plants And Seeds,556
http://statistics.data.gov.uk/id/local-authority/12UE,Huntingdonshire District Council,10/02/2011,75191,501.79,Wicksteed Leisure Ltd,CR028997,Parks & Open Spaces,Playground Equipment,360
http://statistics.data.gov.uk/id/local-authority/12UE,Huntingdonshire District Council,03/02/2011,74937,"3,076.92",Barcham Trees,CR40001,Parks & Open Spaces,Trees/Shrubs,555
http://statistics.data.gov.uk/id/local-authority/12UE,Huntingdonshire District Council,24/02/2011,76476,"9,814.81",416949,CR478560,Parks Equipment Capital,Playground Equipment,360
http://statistics.data.gov.uk/id/local-authority/12UE,Huntingdonshire District Council,03/02/2011,75661,570,Ecocleen Services Limited,CR406985,Pathfinder House Site,Building Cleaning Internal,440
http://statistics.data.gov.uk/id/local-authority/12UE,Huntingdonshire District Council,03/02/2011,75660,576,Ecocleen Services Limited,CR406985,Pathfinder House Site,Building Cleaning Internal,440
http://statistics.data.gov.uk/id/local-authority/12UE,Huntingdonshire District Council,03/02/2011,74752,559.26,Maskearaid Ind Supplies,CR033423,Pathfinder House Site,Cleaning Materials,443
http://statistics.data.gov.uk/id/local-authority/12UE,Huntingdonshire District Council,17/02/2011,76668,"10,444.66",Swalec,CR407130,Pathfinder House Site,Electricity,420
http://statistics.data.gov.uk/id/local-authority/12UE,Huntingdonshire District Council,24/02/2011,76099,"1,644.00",Officestor,CR479100,Pathfinder House Site,Furniture,200
http://statistics.data.gov.uk/id/local-authority/12UE,Huntingdonshire District Council,17/02/2011,76091,"2,569.94",Swalec,CR407130,Pathfinder House Site,Gas,421
http://statistics.data.gov.uk/id/local-authority/12UE,Huntingdonshire District Council,03/02/2011,74531,"1,090.80",Kone Lifts Ltd,CR000483,Pathfinder House Site,Gen Building Mtce - Planned,304
http://statistics.data.gov.uk/id/local-authority/12UE,Huntingdonshire District Council,03/02/2011,75616,"1,459.89",Ecocleen Services Limited,CR406985,Pathfinder House Site,Gen Building Mtce - Planned,304
http://statistics.data.gov.uk/id/local-authority/12UE,Huntingdonshire District Council,10/02/2011,75646,"1,981.69",Ecocleen Services Limited,CR406985,Pathfinder House Site,Gen Building Mtce - Planned,304
http://statistics.data.gov.uk/id/local-authority/12UE,Huntingdonshire District Council,03/02/2011,74286,"3,705.00",Hygiene Solutions,CR477443,Pathfinder House Site,Gen Building Mtce - Planned,304
http://statistics.data.gov.uk/id/local-authority/12UE,Huntingdonshire District Council,17/02/2011,75315,648.07,Kershaw Mechanical Services Ltd,CR480268,Pathfinder House Site,Gen Building Mtce - Responsive,303
http://statistics.data.gov.uk/id/local-authority/12UE,Huntingdonshire District Council,24/02/2011,76415,925.3,Playfords Ltd,CR479055,Pathfinder House Site,Gen Building Mtce - Responsive,303
http://statistics.data.gov.uk/id/local-authority/12UE,Huntingdonshire District Council,17/02/2011,76619,762.8,Anglian Water,CR000071,Pathfinder House Site,Sewerage,433
http://statistics.data.gov.uk/id/local-authority/12UE,Huntingdonshire District Council,17/02/2011,76618,"3,371.26",Anglian Water,CR000071,Pathfinder House Site,Sewerage,433
http://statistics.data.gov.uk/id/local-authority/12UE,Huntingdonshire District Council,24/02/2011,75650,"10,694.16",John Henry & Sons,CR031967,Pathfinder House Site,Sitework,359
http://statistics.data.gov.uk/id/local-authority/12UE,Huntingdonshire District Council,17/02/2011,76619,655.25,Anglian Water,CR000071,Pathfinder House Site,Water,432
http://statistics.data.gov.uk/id/local-authority/12UE,Huntingdonshire District Council,17/02/2011,76618,"3,009.32",Anglian Water,CR000071,Pathfinder House Site,Water,432
http://statistics.data.gov.uk/id/local-authority/12UE,Huntingdonshire District Council,03/02/2011,74852,"1,359.32",G Ferrara Ltd,CR478949,Pavillions,Gen Building Mtce - Responsive,303
http://statistics.data.gov.uk/id/local-authority/12UE,Huntingdonshire District Council,17/02/2011,76450,"5,112.00",Northgate Hr Limited,CR416464,People Performance&Partner Mu,Training - I T,134
http://statistics.data.gov.uk/id/local-authority/12UE,Huntingdonshire District Council,24/02/2011,75555,"2,766.72",Essex Environmental Supplies Limited,CR40195,Pest Control,Bait/Poisons,553
http://statistics.data.gov.uk/id/local-authority/12UE,Huntingdonshire District Council,24/02/2011,75555,"2,202.62",Essex Environmental Supplies Limited,CR40195,Pest Control,Equipment Purchases,500
http://statistics.data.gov.uk/id/local-authority/12UE,Huntingdonshire District Council,17/02/2011,75531,"1,042.82",Saltream  Ltd,CR411219,Property Development And Mgt,Gen Building Mtce - Planned,304
http://statistics.data.gov.uk/id/local-authority/12UE,Huntingdonshire District Council,24/02/2011,75532,"4,445.59",Saltream  Ltd,CR411219,Property Development And Mgt,Gen Building Mtce - Planned,304
http://statistics.data.gov.uk/id/local-authority/12UE,Huntingdonshire District Council,24/02/2011,77032,-942,Promain  Uk Ltd,CR082922,Property Development And Mgt,Gen Building Mtce - Responsive,303
http://statistics.data.gov.uk/id/local-authority/12UE,Huntingdonshire District Council,24/02/2011,75554,"1,278.00",Promain  Uk Ltd,CR082922,Property Development And Mgt,Gen Building Mtce - Responsive,303
http://statistics.data.gov.uk/id/local-authority/12UE,Huntingdonshire District Council,24/02/2011,75553,"1,296.00",Promain  Uk Ltd,CR082922,Property Development And Mgt,Gen Building Mtce - Responsive,303
http://statistics.data.gov.uk/id/local-authority/12UE,Huntingdonshire District Council,17/02/2011,76592,749.65,Semco Signs Ltd,CR083202,Property Development And Mgt,Signs Erecting & Removal,361
http://statistics.data.gov.uk/id/local-authority/12UE,Huntingdonshire District Council,03/02/2011,75518,"2,092.51",Information Publications Ltd,CR415915,Public Accountability,Advertising/Promoting Services,255
http://statistics.data.gov.uk/id/local-authority/12UE,Huntingdonshire District Council,03/02/2011,75518,"2,160.00",Information Publications Ltd,CR415915,Public Accountability,Artwork And Design,222
http://statistics.data.gov.uk/id/local-authority/12UE,Huntingdonshire District Council,17/02/2011,75174,"4,813.24",Royal Mail,CR027083,Public Accountability,Postage,231
http://statistics.data.gov.uk/id/local-authority/12UE,Huntingdonshire District Council,10/02/2011,76001,624.6,Campbell Rees Partnership,CR028043,Renovation/Improvement Grants,Professional Fees,798
http://statistics.data.gov.uk/id/local-authority/12UE,Huntingdonshire District Council,17/02/2011,75538,"1,838.02",T N T Post Midlands Ltd,CR479965,Revenue Services Mus,Postage,231
http://statistics.data.gov.uk/id/local-authority/12UE,Huntingdonshire District Council,24/02/2011,77146,"6,241.20",Northgate Information Solutions Uk Ltd,CR028925,Revenue Services Mus,Software,206
http://statistics.data.gov.uk/id/local-authority/12UE,Huntingdonshire District Council,10/02/2011,74987,643.01,Dell Computer Corporation,CR408320,Software Capital,P C'S And Accessories,201
http://statistics.data.gov.uk/id/local-authority/12UE,Huntingdonshire District Council,24/02/2011,75708,"4,860.00",@Uk Plc,CR480042,Software Capital,Software,206
http://statistics.data.gov.uk/id/local-authority/12UE,Huntingdonshire District Council,17/02/2011,76179,"25,947.52",Caci Limited,CR409683,Software Capital,Software,206
http://statistics.data.gov.uk/id/local-authority/12UE,Huntingdonshire District Council,03/02/2011,74788,"1,192.63",B. S. Graves Electrical Ltd,CR000363,Sports Equipment Capital,Sitework,359
http://statistics.data.gov.uk/id/local-authority/12UE,Huntingdonshire District Council,10/02/2011,75949,"4,139.13",John Henry & Sons,CR031967,Sports Equipment Capital,Sitework,359
http://statistics.data.gov.uk/id/local-authority/12UE,Huntingdonshire District Council,24/02/2011,75652,"1,398.00",Dal-Rod (Camridgeshire),CR413675,Street Cleaning,Drains & Sewers,321
http://statistics.data.gov.uk/id/local-authority/12UE,Huntingdonshire District Council,24/02/2011,75854,960,Helping Hand Company Ledbury Ltd,CR0108,Street Cleaning,Equipment Purchases,500
http://statistics.data.gov.uk/id/local-authority/12UE,Huntingdonshire District Council,03/02/2011,74933,"1,048.61",Staffline Group,CR416827,Street Cleaning,Hired Staff,100
http://statistics.data.gov.uk/id/local-authority/12UE,Huntingdonshire District Council,10/02/2011,75167,"1,465.84",Staffline Group,CR416827,Street Cleaning,Hired Staff,100
http://statistics.data.gov.uk/id/local-authority/12UE,Huntingdonshire District Council,17/02/2011,75599,"1,625.04",Staffline Group,CR416827,Street Cleaning,Hired Staff,100
http://statistics.data.gov.uk/id/local-authority/12UE,Huntingdonshire District Council,24/02/2011,75855,"1,625.04",Staffline Group,CR416827,Street Cleaning,Hired Staff,100
http://statistics.data.gov.uk/id/local-authority/12UE,Huntingdonshire District Council,24/02/2011,75977,"1,146.07",Bandvulc Tyres Ltd,CR406810,Street Cleaning,Tyres,630
http://statistics.data.gov.uk/id/local-authority/12UE,Huntingdonshire District Council,17/02/2011,75676,577.2,Johnston Engineering Ltd,CR029831,Street Cleaning,Vehicle Maintenance,619
http://statistics.data.gov.uk/id/local-authority/12UE,Huntingdonshire District Council,10/02/2011,74988,"1,413.60",Red Forge Ltd,CR405690,Street Cleaning,Vehicle Parts,625
http://statistics.data.gov.uk/id/local-authority/12UE,Huntingdonshire District Council,10/02/2011,74577,"3,928.26",J Breheny Contractors Ltd,CR000314,Street Naming,Signs Erecting & Removal,361
http://statistics.data.gov.uk/id/local-authority/12UE,Huntingdonshire District Council,10/02/2011,508973,"2,000.00",Huntingdon Association For Tourism,CR416983,Tourism,Grants (Paid Out),800
http://statistics.data.gov.uk/id/local-authority/12UE,Huntingdonshire District Council,24/02/2011,76391,"1,596.60",New Vision Group Ltd,CR478884,Tourism,I C T Services,731
http://statistics.data.gov.uk/id/local-authority/12UE,Huntingdonshire District Council,24/02/2011,76389,"2,003.40",New Vision Group Ltd,CR478884,Tourism,I C T Services,731
http://statistics.data.gov.uk/id/local-authority/12UE,Huntingdonshire District Council,03/02/2011,74846,"1,759.57",Cambridgeshire County Council,CR006678,Trade Waste,Waste Disposal,763
http://statistics.data.gov.uk/id/local-authority/12UE,Huntingdonshire District Council,24/02/2011,76972,"146,000.00",Cambridgeshire County Council,CR416949,Transportation Capital,Contribution,810
http://statistics.data.gov.uk/id/local-authority/12UE,Huntingdonshire District Council,24/02/2011,75849,"3,780.00",Sterling International Brokers Ltd,CR478136,Treasury management,Consultants Other,711
